bitfinex-derivatives/quotes_SOLF0:USTF0_20250522
["timestamp","ask_amount","ask_price","bid_price","bid_amount"]
[1747943860604,121.98,177.81,177.74,5.6241]
[1747943861000,5.6233,177.77,177.74,5.6241]
[1747943861206,5.6233,177.77,177.76,0.03625105]
[1747943861500,0.04113339,177.79,177.76,0.03625105]
[1747943861694,5.16908733,177.86,177.76,0.03625105]
[1747943862706,0.04062695,177.83,177.76,0.03625105]
[1747943862905,5.622,177.81,177.76,5.65965105]
[1747943863104,0.04062695,177.83,177.76,0.03625105]
[1747943863301,5.622,177.81,177.76,0.03625105]
[1747943863506,5.622,177.81,177.76,5.65965105]
[1747943863809,0.04062695,177.83,177.76,5.65965105]
[1747943864013,5.622,177.81,177.77,5.6231]
[1747943864309,0.04062695,177.83,177.76,0.03625105]
[1747943864611,5.66222695,177.83,177.79,5.6224]
[1747943865008,0.04062695,177.83,177.77,1.8862]
[1747943865903,5.66192695,177.83,177.78,5.6228]
[1747943866103,0.04062695,177.83,177.77,1.8862]
[1747943866512,5.66202695,177.83,177.78,5.6229]
[1747943868812,0.04062695,177.83,177.8,5.6221]
[1747943869113,0.04062695,177.83,177.8,5.65937136]
[1747943869300,5.66202695,177.83,177.8,0.03727136]
[1747943869606,0.04062695,177.83,177.8,0.03727136]
[1747943870411,5.66222695,177.83,177.8,0.03727136]
[1747943871412,5.6217,177.82,177.8,0.03727136]
[1747943872111,5.66202695,177.83,177.8,0.03727136]
[1747943872513,0.04062695,177.83,177.8,0.03727136]
[1747943873112,5.6217,177.82,177.8,0.03727136]
[1747943873811,5.6219,177.81,177.8,0.03727136]
[1747943874308,0.04062695,177.83,177.8,0.03727136]
[1747943875012,5.66212695,177.83,177.8,0.03727136]
[1747943876514,5.6218,177.82,177.8,0.03727136]
[1747943876818,0.04062695,177.83,177.8,0.03727136]
[1747943877819,5.66222695,177.83,177.8,0.03727136]
[1747943878420,5.6217,177.82,177.8,0.03727136]
[1747943880016,0.04062695,177.83,177.8,0.03727136]
[1747943882021,0.04062695,177.83,177.81,5.6218]
[1747943882217,0.04062695,177.83,177.8,0.03727136]
[1747943882523,5.66192695,177.83,177.8,0.03727136]
[1747943882821,0.04062695,177.83,177.8,0.03727136]
[1747943883027,127.5803,177.87,177.82,5.6214]
[1747943883218,121.96,177.87,177.81,2.021]
[1747943884025,0.03606734,177.86,177.81,2.021]
[1747943885322,5.6216,177.82,177.81,2.021]
[1747943885820,5.622,177.81,177.8,0.03727136]
[1747943887225,0.03872143,177.82,177.8,0.03727136]
[1747943887427,5.14442898,177.89,177.85,5.6205]
[1747943888021,10.76402898,177.89,177.85,5.6205]
[1747943888326,5.18651353,177.89,177.85,0.03611952]
[1747943888729,5.6204,177.86,177.85,0.03611952]
[1747943895118,5.6202,177.87,177.85,0.03611952]
[1747943895433,0.04208455,177.89,177.85,0.03611952]
[1747943896526,0.04208455,177.89,177.85,5.65671952]
[1747943896727,0.04208455,177.89,177.85,0.03611952]
[1747943897631,5.6201,177.87,177.85,0.03611952]
[1747943898530,5.6204,177.86,177.85,0.03611952]
[1747943899929,5.6202,177.87,177.85,0.03611952]
[1747943900236,0.04208455,177.89,177.85,0.03611952]
[1747943902130,5.6204,177.86,177.85,0.03611952]
[1747943904329,5.6216,177.83,177.72,5.86042862]
[1747943904539,121.78,177.87,177.74,3.846]
[1747943905036,5.6216,177.83,177.79,5.6225]
[1747943905433,5.65904418,177.83,177.79,5.66201323]
[1747943905624,0.03744418,177.83,177.79,5.66201323]
[1747943906229,5.65874418,177.83,177.79,5.66201323]
[1747943906634,0.03744418,177.83,177.79,5.66201323]
[1747943906823,0.03744418,177.83,177.79,0.03951323]
[1747943907438,5.6222,177.81,177.79,0.03951323]
[1747943908440,5.6223,177.8,177.79,0.03951323]
[1747943910728,0.03744418,177.83,177.79,0.03951323]
[1747943911839,5.6216,177.82,177.79,5.66201323]
[1747943912640,5.622,177.81,177.79,0.03951323]
[1747943914042,5.6223,177.8,177.79,0.03951323]
[1747943917944,126.94442898,177.82,177.79,0.03951323]
[1747943918246,5.14442898,177.82,177.79,0.03951323]
[1747943919048,0.03744418,177.83,177.79,0.03951323]
[1747943919547,5.6223,177.8,177.79,0.03951323]
[1747943925044,5.6223,177.8,177.79,1.323e-05]
[1747943930954,121.64,177.81,177.69,121.64]
[1747943931855,5.66231156,177.77,177.73,5.66198206]
[1747943932058,0.03881156,177.77,177.73,0.03778206]
[1747943932354,0.03881156,177.77,177.75,5.6237]
[1747943932655,0.03881156,177.77,177.74,5.624]
[1747943932842,9.10942334,177.76,177.64,5.86042862]
[1747943933049,9.10942334,177.69,177.64,5.86042862]
[1747943933356,121.66,177.68,177.63,5.86042862]
[1747943933956,0.03872515,177.67,177.64,0.03657792]
[1747943934147,5.627,177.65,177.64,0.03657792]
[1747943940359,5.627,177.65,177.64,7.792e-05]
[1747943941557,0.03872515,177.67,177.64,7.792e-05]
[1747943941954,5.14442898,177.74,177.64,7.792e-05]
[1747943942959,0.03813931,177.71,177.64,7.792e-05]
[1747943943862,5.14442898,177.78,177.64,7.792e-05]
[1747943944063,5.14442898,177.78,177.62,121.72]
[1747943944248,5.14442898,177.78,177.65,9.12090911]
[1747943944452,5.14442898,177.78,177.66,3.9424]
[1747943944860,0.03734722,177.74,177.7,0.04181083]
[1747943945660,5.14442898,177.78,177.7,0.04181083]
[1747943946063,5.6241,177.75,177.7,0.04181083]
[1747943946260,5.14442898,177.78,177.7,0.04181083]
[1747943946659,0.03842558,177.76,177.7,0.04181083]
[1747943947066,0.03842558,177.76,177.74,5.6239]
[1747943947265,0.03842558,177.76,177.7,0.04181083]
[1747943947466,5.6226,177.79,177.7,0.04181083]
[1747943948167,5.6223,177.8,177.76,5.6235]
[1747943948461,121.72,177.83,177.69,121.72]
[1747943948659,0.03692639,177.8,177.76,0.03744083]
[1747943949966,0.03692639,177.8,177.78,5.6228]
[1747943950165,0.03692639,177.8,177.76,0.03744083]
[1747943950861,486.2,177.86,177.76,2.04134083]
[1747943951063,5.6217,177.82,177.76,2.04134083]
[1747943951867,0.04028859,177.81,177.76,2.04134083]
[1747943953064,0.04028859,177.81,177.78,5.6228]
[1747943953363,0.04028859,177.81,177.77,1.9799]
[1747943954363,0.04028859,177.81,177.79,5.6226]
[1747943954558,5.14442898,177.9,177.8,121.48]
[1747943955360,5.14442898,177.92,177.8,121.48]
[1747943955561,5.14442898,177.92,177.84,0.04111482]
[1747943956171,14.26533809,177.92,177.84,0.04111482]
[1747943956355,5.14442898,177.92,177.84,0.04111482]
[1747943956667,5.6194,177.89,177.85,5.6207]
[1747943956876,5.14442898,177.92,177.84,0.04111482]
[1747943957174,5.6197,177.89,177.84,5.66191482]
[1747943957968,5.14442898,177.92,177.84,0.04111482]
[1747943958467,121.48,177.93,177.84,0.04111482]
[1747943959059,5.6207,177.85,177.84,0.04111482]
[1747943959574,5.6205,177.86,177.84,0.04111482]
[1747943959875,9.12090911,177.92,177.84,0.04111482]
[1747943960063,5.6207,177.85,177.84,0.04111482]
[1747943960764,9.12090911,177.92,177.84,0.04111482]
[1747943961372,121.48,177.93,177.84,5.66201482]
[1747943961865,121.48,177.93,177.84,5.66191482]
[1747943962071,121.48,177.93,177.84,0.04111482]
[1747943962263,5.6193,177.9,177.85,2.0584]
[1747943962464,121.48,177.93,177.85,125.3983]
[1747943962665,121.48,177.93,177.85,127.285]
[1747943963075,127.0984,177.93,177.85,127.285]
[1747943963274,5.14442898,177.95,177.85,234.125]
[1747943963476,5.6181,177.94,177.9,5.6189]
[1747943964173,121.44,177.98,177.89,5.6193]
[1747943964375,121.44,177.98,177.92,0.04086233]
[1747943964772,5.6182,177.93,177.92,0.04086233]
[1747943965074,5.14442898,178.01,177.92,0.04086233]
[1747943965575,9.12090911,177.98,177.92,0.04086233]
[1747943965771,121.4,177.97,177.92,0.04086233]
[1747943965981,5.6182,177.93,177.92,0.04086233]
[1747943967275,5.6182,177.93,177.92,6.233e-05]
[1747943974695,5.65378263,177.94,177.92,6.233e-05]
[1747943975292,5.6182,177.93,177.92,6.233e-05]
[1747943977992,5.6202,177.87,177.85,5.845]
[1747943978193,2.9212,177.96,177.85,1.8999]
[1747943978695,5.6194,177.9,177.85,1.8999]
[1747943978996,0.04021953,177.89,177.86,5.66243497]
[1747943979290,0.04021953,177.89,177.86,0.04213497]
[1747943979888,5.62,177.88,177.86,0.04213497]
[1747943980293,5.6201,177.87,177.86,0.04213497]
[1747943987592,0.04021953,177.89,177.86,0.04213497]
[1747943988096,0.04021953,177.89,177.87,5.6201]
[1747943988295,0.04021953,177.89,177.86,0.04213497]
[1747943989400,5.14442898,177.93,177.89,5.6193]
[1747943989593,121.48,177.95,177.86,0.04213497]
[1747943989893,121.48,177.95,177.86,1.93773497]
[1747943990092,5.6187,177.92,177.86,1.93773497]
[1747943990599,5.6187,177.92,177.89,5.6192]
[1747943991096,5.14442898,177.97,177.91,5.6187]
[1747943991300,5.14442898,177.97,177.92,0.03614217]
[1747943991899,126.62442898,177.99,177.92,0.03614217]
[1747943993002,5.6182,177.93,177.92,0.03614217]
[1747943995399,14.74090911,177.93,177.83,1.9461]
[1747943995705,2.0678,177.92,177.82,5.6214]
[1747943995903,5.6209,177.85,177.82,5.6214]
[1747943996110,121.48,177.89,177.81,121.48]
[1747943996397,5.6209,177.85,177.83,0.04187405]
[1747943996602,0.04211695,177.87,177.83,0.04187405]
[1747943997004,5.6209,177.85,177.83,0.04187405]
[1747943997200,0.04211695,177.87,177.83,0.04187405]
[1747943997599,5.66231695,177.87,177.83,0.04187405]
[1747943998004,5.66231695,177.87,177.83,5.66297405]
[1747943998408,0.04211695,177.87,177.83,0.04187405]
[1747943998610,0.04211695,177.87,177.84,5.6207]
[1747943998800,0.04211695,177.87,177.83,0.04187405]
[1747943999202,0.04211695,177.87,177.86,5.6204]
[1747943999713,5.14442898,177.94,177.83,0.04187405]
[1747943999907,5.14442898,177.94,177.83,106.8]
[1747944000108,5.6183,177.93,177.84,1.9898]
[1747944000302,5.14442898,177.94,177.84,1.9898]
[1747944000710,5.14442898,177.94,177.87,0.03942396]
[1747944000910,5.14442898,177.94,177.88,121.48]
[1747944001207,10.76252898,177.94,177.88,123.4886]
[1747944002002,5.6186,177.92,177.89,5.6194]
[1747944002204,5.14442898,177.94,177.88,123.4886]
[1747944002709,121.48,177.98,177.88,123.4886]
[1747944002911,121.48,177.98,177.91,0.03946232]
[1747944003711,5.6177,177.95,177.91,0.03946232]
[1747944003912,121.48,177.98,177.91,0.03946232]
[1747944004211,5.6181,177.94,177.91,0.03946232]
[1747944005808,121.48,177.98,177.91,0.03946232]
[1747944006212,5.618,177.94,177.91,0.03946232]
[1747944006412,121.48,177.98,177.91,0.03946232]
[1747944007116,5.6176,177.95,177.91,0.03946232]
[1747944007305,5.14442898,177.99,177.91,0.03946232]
[1747944008016,5.14442898,178.0,177.91,0.03946232]
[1747944008317,5.14442898,178.0,177.94,0.04002049]
[1747944008616,5.6178,177.95,177.94,0.04002049]
[1747944011417,5.14442898,178.0,177.94,0.04002049]
[1747944012019,5.6165,177.99,177.95,5.6173]
[1747944012415,5.14442898,178.0,177.95,5.6173]
[1747944012720,5.14442898,178.0,177.94,0.04002049]
[1747944013226,5.6164,177.99,177.96,5.617]
[1747944014118,5.14442898,178.0,177.95,5.6174]
[1747944014522,5.14442898,178.0,177.94,0.04002049]
[1747944014823,5.6164,177.99,177.96,5.617]
[1747944015720,5.616,178.0,177.97,5.6168]
[1747944015922,124.4,178.04,177.97,5.6168]
[1747944015923,124.4,178.04,177.97,0.03841466]
[1747944016325,5.6166,177.98,177.97,0.03841466]
[1747944017922,5.6163,177.99,177.97,0.03841466]
[1747944018124,124.4,178.04,177.97,0.03841466]
[1747944018327,5.6166,177.98,177.97,0.03841466]
[1747944023326,5.14442898,178.05,177.97,0.03841466]
[1747944023529,5.14442898,178.05,178.0,5.6158]
[1747944023824,5.14442898,178.05,178.01,0.03595799]
[1747944024026,5.14442898,178.05,178.01,5.65336521]
[1747944025022,5.14442898,178.05,178.01,0.03776521]
[1747944025829,5.6153,178.03,178.01,0.03776521]
[1747944026626,5.6153,178.02,178.01,0.03776521]
[1747944026928,0.03961581,178.03,177.91,126.382]
[1747944027230,5.6178,177.95,177.92,5.6182]
[1747944027527,133.48090911,178.02,177.91,126.382]
[1747944027927,0.04194492,177.98,177.95,0.04010546]
[1747944028226,5.6175,177.96,177.95,0.04010546]
[1747944032418,124.36,177.96,177.78,8.79088386]
[1747944032625,9.10522083,177.85,177.78,8.79088386]
[1747944032929,124.36,177.84,177.81,5.86042862]
[1747944033127,5.6216,177.82,177.81,5.86042862]
[1747944035638,5.6216,177.82,177.8,0.04007419]
[1747944035839,5.65904051,177.83,177.8,0.04007419]
[1747944036239,0.03764051,177.83,177.8,0.04007419]
[1747944037039,5.6219,177.82,177.8,0.04007419]
[1747944037247,0.03764051,177.83,177.8,0.04007419]
[1747944038246,5.6219,177.82,177.8,0.04007419]
[1747944038435,0.03764051,177.83,177.8,0.04007419]
[1747944039749,5.622,177.81,177.8,0.04007419]
[1747944045952,0.03764051,177.83,177.8,0.04007419]
[1747944046449,5.622,177.81,177.8,0.04007419]
[1747944048056,0.03764051,177.83,177.8,0.04007419]
[1747944048749,0.03764051,177.83,177.8,5.66217419]
[1747944049051,0.03764051,177.83,177.8,0.04007419]
[1747944049749,5.6219,177.82,177.8,0.04007419]
[1747944050156,0.03764051,177.83,177.8,0.04007419]
[1747944050345,5.65904051,177.83,177.8,0.04007419]
[1747944051147,5.6217,177.82,177.8,0.04007419]
[1747944051554,0.03764051,177.83,177.8,0.04007419]
[1747944051849,5.65904051,177.83,177.8,0.04007419]
[1747944052349,5.65904051,177.83,177.8,5.66227419]
[1747944053455,5.65904051,177.83,177.8,0.04007419]
[1747944053657,0.03764051,177.83,177.8,0.04007419]
[1747944054556,5.622,177.81,177.8,0.04007419]
[1747944059958,5.6217,177.82,177.8,0.04007419]
[1747944060153,0.03764051,177.83,177.8,0.04007419]
[1747944060460,5.622,177.81,177.8,0.04007419]
[1747944060655,0.03764051,177.83,177.8,0.04007419]
[1747944060858,0.03764051,177.83,177.8,5.66207419]
[1747944061064,0.03764051,177.83,177.8,0.04007419]
[1747944061561,0.03764051,177.83,177.81,5.6218]
[1747944061864,5.65894051,177.83,177.8,0.04007419]
[1747944062260,5.65894051,177.83,177.8,5.66207419]
[1747944062760,5.65894051,177.83,177.81,5.6219]
[1747944062962,0.03764051,177.83,177.8,0.04007419]
[1747944063158,485.9,177.82,177.58,17.90115823]
[1747944063362,9.11027437,177.8,177.62,9.11027437]
[1747944064056,0.04072352,177.73,177.69,0.0397082]
[1747944064256,0.03907341,177.73,177.69,0.03772582]
[1747944064462,5.6249,177.72,177.69,0.03772582]
[1747944064656,0.03907341,177.73,177.69,0.03772582]
[1747944065056,5.6252,177.71,177.69,0.03772582]
[1747944065263,0.03907341,177.73,177.69,0.03772582]
[1747944065963,5.625,177.72,177.69,0.03772582]
[1747944066466,5.6252,177.71,177.69,0.03772582]
[1747944068265,5.6254,177.7,177.69,0.03772582]
[1747944074272,5.6252,177.71,177.69,0.03772582]
[1747944074673,0.03907341,177.73,177.69,0.03772582]
[1747944075173,5.6254,177.7,177.69,0.03772582]
[1747944076267,0.03907341,177.73,177.69,0.03772582]
[1747944076464,126.21907341,177.73,177.69,0.03772582]
[1747944077367,0.03907341,177.73,177.69,0.03772582]
[1747944077566,5.6254,177.7,177.69,0.03772582]
[1747944082376,5.6252,177.71,177.69,0.03772582]
[1747944082677,5.14442898,177.77,177.69,126.23772582]
[1747944082880,5.6236,177.76,177.7,4.0243]
[1747944083070,5.14442898,177.77,177.7,4.0243]
[1747944083878,0.04312488,177.75,177.7,4.0243]
[1747944084075,5.14442898,177.77,177.75,5.6238]
[1747944084576,5.6231,177.78,177.75,5.6238]
[1747944084772,5.6232,177.77,177.75,5.6238]
[1747944084980,5.14442898,177.85,177.74,0.03816346]
[1747944085377,5.14442898,177.85,177.74,5.66226346]
[1747944085582,5.14442898,177.85,177.74,0.03816346]
[1747944086279,126.18,177.83,177.74,0.03816346]
[1747944086481,5.6229,177.79,177.76,5.6233]
[1747944086980,126.18,177.83,177.74,0.03816346]
[1747944087179,5.6231,177.78,177.75,5.6238]
[1747944088279,126.18,177.83,177.74,0.03816346]
[1747944088676,5.6226,177.79,177.76,5.6234]
[1747944089780,5.6229,177.78,177.75,7.6628]
[1747944090179,5.6229,177.78,177.75,2.039]
[1747944090488,126.16,177.83,177.75,2.039]
[1747944090489,5.6227,177.79,177.76,5.6235]
[1747944090784,7.07162898,177.87,177.76,0.03952933]
[1747944091082,126.16,177.86,177.8,0.04285154]
[1747944091984,5.622,177.81,177.8,0.04285154]
[1747944095079,1.9272,177.87,177.8,0.04285154]
[1747944095383,126.14,177.86,177.8,0.04285154]
[1747944096091,5.6212,177.84,177.81,5.6219]
[1747944096278,126.14,177.86,177.8,0.04285154]
[1747944096587,5.6213,177.84,177.8,5.66495154]
[1747944097089,126.14,177.88,177.8,0.04285154]
[1747944097287,126.14,177.88,177.8,5.66505154]
[1747944098083,126.14,177.88,177.8,0.04285154]
[1747944098288,5.6216,177.82,177.8,0.04285154]
[1747944099190,5.622,177.81,177.8,0.04285154]
[1747944100194,126.14,177.88,177.8,0.04285154]
[1747944100195,5.6219,177.82,177.8,0.04285154]
[1747944100694,5.6212,177.84,177.8,5.66505154]
[1747944100988,126.14,177.88,177.8,0.04285154]
[1747944103390,5.6219,177.82,177.8,0.04285154]
[1747944104691,5.622,177.81,177.8,0.04285154]
[1747944105194,122.86,177.87,177.8,0.04285154]
[1747944105796,122.86,177.9,177.83,5.6211]
[1747944105994,122.86,177.9,177.85,0.0423221]
[1747944106184,5.6204,177.86,177.85,0.0423221]
[1747944106382,128.00442898,177.92,177.85,0.0423221]
[1747944106582,5.14442898,177.92,177.86,9.10217455]
[1747944107095,5.14442898,177.92,177.87,1.9264]
[1747944107590,2.01832898,177.92,177.91,5.6188]
[1747944107897,122.86,177.98,177.91,122.86]
[1747944108497,5.618,177.94,177.91,122.86]
[1747944108996,5.6167,177.98,177.94,5.6176]
[1747944109192,5.6167,177.98,177.94,5.65802968]
[1747944109588,130.27582898,178.04,177.94,0.04042968]
[1747944111099,128.2575,178.04,177.94,0.04042968]
[1747944111399,5.6172,177.96,177.94,0.04042968]
[1747944112299,5.617,177.97,177.94,0.04042968]
[1747944112799,5.6172,177.96,177.94,0.04042968]
[1747944112999,128.2575,178.04,177.94,0.04042968]
[1747944113499,5.6173,177.96,177.94,0.04042968]
[1747944113709,128.2575,178.04,177.94,0.04042968]
[1747944114199,128.2575,178.04,177.94,5.65822968]
[1747944114397,128.2575,178.04,177.94,0.04042968]
[1747944115299,5.6169,177.97,177.94,0.04042968]
[1747944115499,128.2575,178.04,177.94,0.04042968]
[1747944116700,5.6174,177.96,177.94,0.04042968]
[1747944117198,5.6175,177.95,177.94,0.04042968]
[1747944119694,128.2575,178.04,177.94,0.04042968]
[1747944120290,5.6175,177.96,177.94,0.04042968]
[1747944121095,122.78,178.01,177.94,0.04042968]
[1747944121096,5.6175,177.95,177.94,0.04042968]
[1747944123305,122.78,178.01,177.94,0.04042968]
[1747944123802,5.6172,177.97,177.94,0.04042968]
[1747944125204,5.4375,178.04,177.94,0.04042968]
[1747944125502,5.6166,177.98,177.95,5.6173]
[1747944125704,5.6166,177.98,177.95,5.65909055]
[1747944125901,5.4375,178.04,177.95,0.04179055]
[1747944126204,122.76,178.08,177.95,122.80179055]
[1747944126509,122.76,178.08,178.0,0.04092254]
[1747944127304,6.85923865,178.11,178.01,127.94]
[1747944127598,10.67953865,178.16,178.04,0.03669241]
[1747944127801,5.6127,178.11,178.08,0.04273066]
[1747944128010,10.67953865,178.16,178.08,0.04273066]
[1747944128309,5.6127,178.11,178.08,0.04273066]
[1747944129308,5.6129,178.1,178.08,0.04273066]
[1747944129707,10.67953865,178.16,178.08,0.04273066]
[1747944129898,5.6126,178.11,178.08,0.04273066]
[1747944130098,10.67953865,178.16,178.08,0.04273066]
[1747944131108,5.6121,178.13,178.09,5.613]
[1747944131316,10.67953865,178.16,178.08,0.04273066]
[1747944131500,7.4863,178.16,178.11,5.6122]
[1747944131705,7.4863,178.16,178.12,0.04063986]
[1747944132312,5.6113,178.15,178.12,0.04063986]
[1747944132808,485.46,178.22,178.14,5.6115]
[1747944133111,142.25923865,178.23,178.16,0.04058951]
[1747944133309,5.6099,178.2,178.18,0.04124718]
[1747944133503,142.25923865,178.23,178.17,0.041351]
[1747944133699,142.25923865,178.23,178.18,0.03732168]
[1747944133912,6.85923865,178.23,178.18,0.03732168]
[1747944134501,5.61,178.19,178.18,0.03732168]
[1747944140615,5.6097,178.2,178.18,0.03732168]
[1747944141217,5.8663,178.25,178.18,0.03732168]
[1747944141821,5.61,178.19,178.18,0.03732168]
[1747944145115,5.61,178.19,178.18,2.168e-05]
[1747944155230,0.03681327,178.2,178.18,2.168e-05]
[1747944156133,5.9976,178.3,178.18,2.168e-05]
[1747944156429,5.9976,178.3,178.17,144.7]
[1747944157032,5.9976,178.3,178.22,0.03736185]
[1747944157526,5.6077,178.27,178.22,0.03736185]
[1747944158127,5.9976,178.3,178.22,0.03736185]
[1747944158830,5.6078,178.26,178.22,5.64636185]
[1747944159129,5.9976,178.3,178.22,0.03736185]
[1747944160634,144.66,178.34,178.22,0.03736185]
[1747944160825,1.9814,178.31,178.26,0.04259413]
[1747944161130,5.6075,178.27,178.26,0.04259413]
[1747944175150,144.64,178.33,178.26,0.04259413]
[1747944175451,144.64,178.33,178.26,5.65009413]
[1747944175647,5.6071,178.29,178.26,5.65009413]
[1747944175847,5.6071,178.29,178.26,0.04259413]
[1747944176153,144.64,178.33,178.26,0.04259413]
[1747944176448,5.6075,178.27,178.26,0.04259413]
[1747944178446,5.6069,178.29,178.26,5.65039413]
[1747944178653,144.64,178.33,178.26,0.04259413]
[1747944179052,5.6073,178.28,178.26,0.04259413]
[1747944179952,144.64,178.33,178.26,0.04259413]
[1747944180747,5.6069,178.29,178.26,0.04259413]
[1747944181055,144.64,178.33,178.26,0.04259413]
[1747944181257,5.6071,178.29,178.26,5.65019413]
[1747944181556,144.64,178.33,178.26,0.04259413]
[1747944181947,5.6071,178.29,178.26,0.04259413]
[1747944182254,144.64,178.33,178.26,0.04259413]
[1747944182456,5.6072,178.28,178.26,0.04259413]
[1747944182955,5.6072,178.28,178.26,5.65029413]
[1747944183158,5.6068,178.29,178.26,5.65029413]
[1747944183351,144.64,178.33,178.26,5.65029413]
[1747944184654,144.64,178.33,178.26,0.04259413]
[1747944185259,144.64,178.33,178.29,5.6067]
[1747944185759,5.606,178.32,178.27,2.0662]
[1747944186055,5.16712914,178.36,178.3,5.6065]
[1747944186460,5.16712914,178.36,178.29,5.6068]
[1747944186761,5.6061,178.32,178.29,5.6068]
[1747944186961,5.16712914,178.36,178.29,5.6068]
[1747944187455,5.16712914,178.36,178.28,0.03920274]
[1747944188252,5.16712914,178.36,178.28,5.64630274]
[1747944188454,144.72,178.37,178.28,0.03920274]
[1747944189656,5.6063,178.31,178.28,5.64630274]
[1747944190762,5.6059,178.32,178.29,5.6067]
[1747944191964,5.6059,178.32,178.3,5.6065]
[1747944192267,5.16712914,178.38,178.29,144.7]
[1747944192461,5.16712914,178.38,178.33,5.6054]
[1747944192661,5.16712914,178.38,178.32,0.04117692]
[1747944192861,10.77132914,178.38,178.32,0.04117692]
[1747944193063,5.16712914,178.38,178.32,0.04117692]
[1747944193761,5.16712914,178.38,178.32,3.98157692]
[1747944193962,10.77112914,178.38,178.32,3.98157692]
[1747944194362,5.16712914,178.38,178.32,3.98157692]
[1747944194764,5.16712914,178.38,178.33,5.6054]
[1747944195072,5.16712914,178.38,178.32,3.98157692]
[1747944195073,5.6056,178.33,178.32,0.04117692]
[1747944202276,5.6056,178.33,178.32,7.692e-05]
[1747944205871,150.2856,178.33,178.32,7.692e-05]
[1747944206072,144.68,178.33,178.22,4.0745]
[1747944206473,5.6083,178.25,178.22,4.0745]
[1747944206979,5.6469244,178.25,178.22,4.11081812]
[1747944207482,5.6469244,178.25,178.22,9.71961812]
[1747944208485,5.6084,178.24,178.22,4.11081812]
[1747944208975,0.0386244,178.25,178.22,4.11081812]
[1747944210284,0.0386244,178.25,178.23,5.6087]
[1747944211985,5.6084,178.24,178.22,4.11081812]
[1747944212177,0.0386244,178.25,178.22,2.10681812]
[1747944212380,0.0386244,178.25,178.22,0.03631812]
[1747944212581,5.6087,178.23,178.22,0.03631812]
[1747944213391,5.6085,178.24,178.22,0.03631812]
[1747944213794,0.0386244,178.25,178.22,0.03631812]
[1747944213987,5.6084,178.24,178.22,0.03631812]
[1747944215095,5.6467244,178.25,178.22,0.03631812]
[1747944215792,5.6084,178.24,178.22,0.03631812]
[1747944216191,0.0386244,178.25,178.22,0.03631812]
[1747944216585,5.6087,178.24,178.22,0.03631812]
[1747944216893,0.0386244,178.25,178.22,0.03631812]
[1747944217095,5.6087,178.23,178.22,0.03631812]
[1747944223092,5.6087,178.23,178.22,1.812e-05]
[1747944235202,5.6109,178.17,178.13,146.8354]
[1747944235402,143.1534,178.24,178.13,141.2237]
[1747944236103,143.1534,178.24,178.15,5.6112]
[1747944236304,0.03991178,178.21,178.18,0.04235905]
[1747944236805,5.61,178.19,178.18,0.04235905]
[1747944242799,5.61,178.19,178.18,5.905e-05]
[1747944243311,139.63,178.19,178.18,5.905e-05]
[1747944243908,5.6123,178.12,178.1,1.9427]
[1747944244106,134.02,178.19,178.1,1.9427]
[1747944244306,5.612,178.13,178.1,1.9427]
[1747944244817,5.6543323,178.13,178.1,1.97866201]
[1747944247617,0.0423323,178.13,178.11,5.6123]
[1747944247915,0.0423323,178.13,178.1,1.97866201]
[1747944248320,0.0423323,178.13,178.1,0.03596201]
[1747944248805,5.6122,178.12,178.1,0.03596201]
[1747944249504,5.6125,178.11,178.1,0.03596201]
[1747944258519,0.0423323,178.13,178.1,0.03596201]
[1747944259624,5.6125,178.11,178.1,0.03596201]
[1747944268822,5.6125,178.11,178.1,6.201e-05]
[1747944269020,5.6147,178.04,178.03,1.9445]
[1747944269222,129.7,178.09,178.0,6.40704439]
[1747944270027,5.6149,178.04,178.03,0.04286384]
[1747944270226,0.04216321,178.06,178.03,0.04286384]
[1747944270426,5.6146,178.05,178.03,0.04286384]
[1747944270928,5.6147,178.04,178.03,0.04286384]
[1747944276038,0.04216321,178.06,178.03,0.04286384]
[1747944277339,5.65626321,178.06,178.03,0.04286384]
[1747944277832,5.65626321,178.06,178.04,5.6147]
[1747944278335,5.65626321,178.06,178.03,5.65776384]
[1747944278835,0.04216321,178.06,178.03,0.04286384]
[1747944279731,129.72,178.13,178.03,0.04286384]
[1747944279930,129.72,178.13,178.02,129.72]
[1747944280138,5.6129,178.1,178.02,129.72]